[Event "*** Titled Tuesday Blitz"]
[Site "Chess.com"]
[Date "2020.03.03"]
[Round "3"]
[White "Babas"]
[Black "Rhinos1"]
[Result "0-1"]
[WhiteElo "2352"]
[BlackElo "2175"]
[TimeControl "180+1"]
[EndTime "13:26:32 PST"]
[Termination "Rhinos1 won by resignation"]

1. d4 {[%clk 0:02:59.7]} 1... Nf6 {[%clk 0:02:59.2]} 2. Nf3 {[%clk 0:02:55.2]}
2... g6 {[%clk 0:02:59.4]} 3. Nc3 {[%clk 0:02:54.9]} 3... d5 {[%clk 0:02:58.1]}
4. Bf4 {[%clk 0:02:54.2]} 4... Bg7 {[%clk 0:02:57.9]} 5. e3 {[%clk 0:02:53.4]}
5... c5 {[%clk 0:02:55.2]} 6. Nb5 {[%clk 0:02:28.4]} 6... Na6 {[%clk 0:02:53]}
7. c3 {[%clk 0:02:26.7]} 7... O-O {[%clk 0:02:37.4]} 8. Bd3 {[%clk 0:02:24.1]}
8... Bg4 {[%clk 0:02:36.3]} 9. O-O {[%clk 0:02:22.4]} 9... Ne4 {[%clk
0:02:33.5]} 10. h3 {[%clk 0:02:19.5]} 10... Bxf3 {[%clk 0:02:33]} 11. gxf3
{[%clk 0:02:19.2]} 11... Nf6 {[%clk 0:02:20.5]} 12. e4 {[%clk 0:01:58.8]} 12...
c4 {[%clk 0:02:18.8]} 13. Bc2 {[%clk 0:01:52.9]} 13... Qd7 {[%clk 0:02:18.8]}
14. a4 {[%clk 0:01:41.4]} 14... Qxh3 {[%clk 0:02:18.3]} 15. Be5 {[%clk
0:01:28.8]} 15... Nh5 {[%clk 0:02:12.7]} 16. Bxg7 {[%clk 0:01:25.4]} 16... Nf4
{[%clk 0:02:09.4]} 0-1

[Event "*** Titled Tuesday Blitz"]
[Site "Chess.com"]
[Date "2020.03.03"]
[Round "3"]
[White "Sven_Tica"]
[Black "GM_dmitrij"]
[Result "0-1"]
[WhiteElo "2661"]
[BlackElo "2832"]
[TimeControl "180+1"]
[EndTime "13:26:40 PST"]
[Termination "GM_dmitrij won by resignation"]

1. d4 {[%clk 0:03:00.9]} 1... Nf6 {[%clk 0:02:59.9]} 2. Nf3 {[%clk 0:03:01.6]}
2... e6 {[%clk 0:02:58.1]} 3. c4 {[%clk 0:03:01.8]} 3... b6 {[%clk 0:02:58.6]}
4. g3 {[%clk 0:03:02]} 4... Ba6 {[%clk 0:02:59.1]} 5. b3 {[%clk 0:03:00.8]} 5...
Bb4+ {[%clk 0:02:58.9]} 6. Bd2 {[%clk 0:03:01.2]} 6... Be7 {[%clk 0:02:59.8]} 7.
Bg2 {[%clk 0:03:01.6]} 7... d5 {[%clk 0:03:00.7]} 8. Qc2 {[%clk 0:02:57.4]} 8...
O-O {[%clk 0:03:00.7]} 9. O-O {[%clk 0:02:57.5]} 9... Nbd7 {[%clk 0:02:59.4]}
10. Rd1 {[%clk 0:02:56.8]} 10... Re8 {[%clk 0:02:59.4]} 11. Bf4 {[%clk
0:02:53.8]} 11... Rc8 {[%clk 0:02:52.8]} 12. Ne5 {[%clk 0:02:46.1]} 12... c5
{[%clk 0:02:49.9]} 13. dxc5 {[%clk 0:02:39.2]} 13... Bxc5 {[%clk 0:02:44.4]} 14.
Qb2 {[%clk 0:02:33.5]} 14... Nxe5 {[%clk 0:02:39.5]} 15. Bxe5 {[%clk 0:02:33.2]}
15... Ng4 {[%clk 0:02:21.6]} 16. Bd4 {[%clk 0:02:31.8]} 16... dxc4 {[%clk
0:02:22]} 17. b4 {[%clk 0:02:11]} 17... c3 {[%clk 0:02:00.6]} 18. Qc2 {[%clk
0:01:28.2]} 18... Bxd4 {[%clk 0:01:53.7]} 19. e3 {[%clk 0:01:28.7]} 19... Nxe3
{[%clk 0:01:54.1]} 20. fxe3 {[%clk 0:01:29.1]} 20... Bxe3+ {[%clk 0:01:55]} 21.
Kh1 {[%clk 0:01:30]} 21... Qxd1+ {[%clk 0:01:54.4]} 22. Qxd1 {[%clk 0:01:28.6]}
22... c2 {[%clk 0:01:55.3]} 23. Na3 {[%clk 0:01:29.5]} 0-1

[Event "*** Titled Tuesday Blitz"]
[Site "Chess.com"]
[Date "2020.03.03"]
[Round "3"]
[White "Bulldog167"]
[Black "OparinGrigoriy"]
[Result "1/2-1/2"]
[WhiteElo "2756"]
[BlackElo "3018"]
[TimeControl "180+1"]
[EndTime "13:26:47 PST"]
[Termination "Game drawn by repetition"]

1. d4 {[%clk 0:03:00.9]} 1... Nf6 {[%clk 0:02:59.9]} 2. c4 {[%clk 0:03:01]} 2...
e6 {[%clk 0:03:00.4]} 3. Nf3 {[%clk 0:03:01.2]} 3... Bb4+ {[%clk 0:03:00.7]} 4.
Bd2 {[%clk 0:03:00.7]} 4... a5 {[%clk 0:03:00.1]} 5. g3 {[%clk 0:03:00.3]} 5...
O-O {[%clk 0:03:00.6]} 6. Bg2 {[%clk 0:03:00.6]} 6... d5 {[%clk 0:02:59.6]} 7.
O-O {[%clk 0:03:00]} 7... c6 {[%clk 0:02:58.9]} 8. Qc2 {[%clk 0:02:58.3]} 8...
Nbd7 {[%clk 0:02:56.9]} 9. Rd1 {[%clk 0:02:53.3]} 9... Bd6 {[%clk 0:02:52.8]}
10. Bg5 {[%clk 0:02:42.2]} 10... h6 {[%clk 0:02:52.2]} 11. Bxf6 {[%clk
0:02:42.3]} 11... Nxf6 {[%clk 0:02:53.1]} 12. Nbd2 {[%clk 0:02:41.8]} 12... b5
{[%clk 0:02:52.1]} 13. c5 {[%clk 0:02:30.5]} 13... Bc7 {[%clk 0:02:48.8]} 14. e4
{[%clk 0:02:31]} 14... dxe4 {[%clk 0:02:46.7]} 15. Nxe4 {[%clk 0:02:30.9]} 15...
Nd5 {[%clk 0:02:47.3]} 16. Ne5 {[%clk 0:02:25.6]} 16... Bd7 {[%clk 0:02:46.1]}
17. h4 {[%clk 0:02:17.4]} 17... f6 {[%clk 0:02:43.7]} 18. Ng6 {[%clk 0:02:00.1]}
18... Rf7 {[%clk 0:02:43.8]} 19. Nd6 {[%clk 0:01:55.8]} 19... Bxd6 {[%clk
0:02:38.8]} 20. cxd6 {[%clk 0:01:56.7]} 20... Be8 {[%clk 0:02:35.7]} 21. Bxd5
{[%clk 0:01:40.2]} 21... cxd5 {[%clk 0:02:33.5]} 22. Ne7+ {[%clk 0:01:40.1]}
22... Kh8 {[%clk 0:02:30.2]} 23. Ng6+ {[%clk 0:01:14.6]} 23... Kg8 {[%clk
0:02:30.2]} 24. Ne7+ {[%clk 0:01:02.8]} 24... Kh8 {[%clk 0:02:30.2]} 25. Ng6+
{[%clk 0:00:53.1]} 25... Kg8 {[%clk 0:02:30.4]} 1/2-1/2

[Event "*** Titled Tuesday Blitz"]
[Site "Chess.com"]
[Date "2020.03.03"]
[Round "3"]
[White "Aleksandr_Kozak"]
[Black "boasovietica"]
[Result "1-0"]
[WhiteElo "2233"]
[BlackElo "2477"]
[TimeControl "180+1"]
[EndTime "13:26:49 PST"]
[Termination "Aleksandr_Kozak won by resignation"]

1. e4 {[%clk 0:02:58.7]} 1... c5 {[%clk 0:02:53.3]} 2. c3 {[%clk 0:02:57.6]}
2... d5 {[%clk 0:02:52.5]} 3. exd5 {[%clk 0:02:57.3]} 3... Qxd5 {[%clk 0:02:53]}
4. d4 {[%clk 0:02:57]} 4... Nf6 {[%clk 0:02:52.5]} 5. Nf3 {[%clk 0:02:56.7]}
5... cxd4 {[%clk 0:02:52.5]} 6. cxd4 {[%clk 0:02:55.8]} 6... g6 {[%clk
0:02:52.6]} 7. Nc3 {[%clk 0:02:55.3]} 7... Qd8 {[%clk 0:02:53.2]} 8. Bc4 {[%clk
0:02:53.9]} 8... Bg7 {[%clk 0:02:53.5]} 9. Ne5 {[%clk 0:02:51.1]} 9... O-O
{[%clk 0:02:53.3]} 10. O-O {[%clk 0:02:50.3]} 10... Nc6 {[%clk 0:02:51.8]} 11.
Be3 {[%clk 0:02:40]} 11... Nxe5 {[%clk 0:02:41]} 12. dxe5 {[%clk 0:02:39.2]}
12... Ng4 {[%clk 0:02:41.2]} 13. e6 {[%clk 0:02:21.6]} 13... f5 {[%clk
0:02:40.7]} 14. Qxd8 {[%clk 0:02:15.8]} 14... Rxd8 {[%clk 0:02:38.4]} 15. Bc5
{[%clk 0:02:16.4]} 15... Bf6 {[%clk 0:02:25.3]} 16. Nd5 {[%clk 0:02:13.8]} 16...
Re8 {[%clk 0:01:13.8]} 17. Nc7 {[%clk 0:02:09.7]} 17... Nxh2 {[%clk 0:01:02.8]}
18. Nxe8 {[%clk 0:02:00.6]} 1-0

[Event "*** Titled Tuesday Blitz"]
[Site "Chess.com"]
[Date "2020.03.03"]
[Round "3"]
[White "Terao90"]
[Black "MateusViageiro"]
[Result "0-1"]
[WhiteElo "2367"]
[BlackElo "2197"]
[TimeControl "180+1"]
[EndTime "13:26:58 PST"]
[Termination "MateusViageiro won by resignation"]

1. e4 {[%clk 0:03:00.9]} 1... c5 {[%clk 0:02:59]} 2. Nf3 {[%clk 0:02:58.4]} 2...
d6 {[%clk 0:02:59]} 3. d4 {[%clk 0:02:58.8]} 3... cxd4 {[%clk 0:02:59.5]} 4.
Nxd4 {[%clk 0:02:59]} 4... Nf6 {[%clk 0:02:59.9]} 5. Nc3 {[%clk 0:02:59.2]} 5...
a6 {[%clk 0:02:59.9]} 6. Bg5 {[%clk 0:02:58.9]} 6... e6 {[%clk 0:02:59.5]} 7. f4
{[%clk 0:02:59.2]} 7... h6 {[%clk 0:02:59.1]} 8. Qe2 {[%clk 0:02:59.6]} 8...
hxg5 {[%clk 0:02:57.2]} 9. fxg5 {[%clk 0:03:00.5]} 9... Ng8 {[%clk 0:02:48.3]}
10. g6 {[%clk 0:03:00.8]} 10... fxg6 {[%clk 0:02:45.8]} 11. O-O-O {[%clk
0:02:58.4]} 11... Nc6 {[%clk 0:02:42]} 12. Nf3 {[%clk 0:02:48.3]} 12... Qc7
{[%clk 0:02:38]} 13. Kb1 {[%clk 0:02:44.4]} 13... Bd7 {[%clk 0:02:37.1]} 14. g3
{[%clk 0:02:40.1]} 14... O-O-O {[%clk 0:02:35.8]} 15. h4 {[%clk 0:02:40.3]}
15... Kb8 {[%clk 0:02:33]} 16. Bh3 {[%clk 0:02:40.2]} 16... Nf6 {[%clk
0:02:30.6]} 17. Rhf1 {[%clk 0:02:38.9]} 17... Be7 {[%clk 0:02:29.3]} 18. Ng5
{[%clk 0:02:38.9]} 18... Ne5 {[%clk 0:02:17.8]} 19. Bxe6 {[%clk 0:02:33.7]}
19... Rc8 {[%clk 0:01:59.6]} 20. Nd5 {[%clk 0:02:30.9]} 20... Nxd5 {[%clk
0:01:53.1]} 21. exd5 {[%clk 0:02:31.8]} 21... Bxg5 {[%clk 0:01:49.7]} 22. hxg5
{[%clk 0:02:31]} 22... Bb5 {[%clk 0:01:43.2]} 23. Qf2 {[%clk 0:02:24.9]} 23...
Bxf1 {[%clk 0:01:40.1]} 24. Bxc8 {[%clk 0:02:23.9]} 24... Rxc8 {[%clk
0:01:29.5]} 25. Rxf1 {[%clk 0:02:23.7]} 25... Qc5 {[%clk 0:01:28.2]} 26. Qd2
{[%clk 0:02:22.7]} 26... Nc4 {[%clk 0:01:27.4]} 27. Qd3 {[%clk 0:02:18.3]} 27...
Qb5 {[%clk 0:01:23.4]} 28. b3 {[%clk 0:02:14.2]} 28... Nd2+ {[%clk 0:01:21.6]}
0-1

[Event "*** Titled Tuesday Blitz"]
[Site "Chess.com"]
[Date "2020.03.03"]
[Round "3"]
[White "ChessBitl"]
[Black "newauto"]
[Result "1-0"]
[WhiteElo "2327"]
[BlackElo "2011"]
[TimeControl "180+1"]
[EndTime "13:26:58 PST"]
[Termination "ChessBitl won by resignation"]

1. e4 {[%clk 0:03:00.4]} 1... c6 {[%clk 0:03:00.9]} 2. d4 {[%clk 0:02:59.9]}
2... d5 {[%clk 0:03:01.8]} 3. Nd2 {[%clk 0:03:00.5]} 3... dxe4 {[%clk
0:03:01.9]} 4. Nxe4 {[%clk 0:03:01]} 4... Bf5 {[%clk 0:03:02.4]} 5. Ng3 {[%clk
0:02:58.5]} 5... Bg6 {[%clk 0:03:02.1]} 6. Nf3 {[%clk 0:02:58.8]} 6... Nd7
{[%clk 0:03:01.3]} 7. h4 {[%clk 0:02:58.4]} 7... h6 {[%clk 0:03:00.9]} 8. Bd3
{[%clk 0:02:58.4]} 8... Bxd3 {[%clk 0:03:00.2]} 9. Qxd3 {[%clk 0:02:59]} 9... e6
{[%clk 0:03:00]} 10. Bf4 {[%clk 0:02:59.3]} 10... Qa5+ {[%clk 0:02:59.8]} 11.
Bd2 {[%clk 0:02:58.9]} 11... Bb4 {[%clk 0:02:59.7]} 12. c3 {[%clk 0:02:57.5]}
12... Bd6 {[%clk 0:02:59.1]} 13. Ne4 {[%clk 0:02:56.5]} 13... Qc7 {[%clk
0:02:27.3]} 14. Nxd6+ {[%clk 0:02:53.8]} 14... Qxd6 {[%clk 0:02:27.1]} 15. O-O-O
{[%clk 0:02:54.7]} 15... Ngf6 {[%clk 0:02:26.3]} 16. Rhe1 {[%clk 0:02:47.2]}
16... c5 {[%clk 0:02:14.7]} 17. Be3 {[%clk 0:02:40.9]} 17... cxd4 {[%clk
0:02:08.9]} 18. Nxd4 {[%clk 0:02:35.6]} 18... O-O {[%clk 0:02:00.9]} 19. Kb1
{[%clk 0:02:34.5]} 19... Nd5 {[%clk 0:01:54.3]} 20. g3 {[%clk 0:02:32.5]} 20...
Nxe3 {[%clk 0:01:52.2]} 21. Qxe3 {[%clk 0:02:31.7]} 21... Qb6 {[%clk 0:01:47.2]}
22. Nxe6 {[%clk 0:02:18.3]} 22... Qxe6 {[%clk 0:01:27.8]} 23. Qxe6 {[%clk
0:02:15.2]} 23... fxe6 {[%clk 0:01:27.5]} 24. Rxd7 {[%clk 0:02:15.7]} 24... Rxf2
{[%clk 0:01:26.6]} 25. Rxe6 {[%clk 0:02:10.6]} 25... Rg2 {[%clk 0:01:24.8]} 26.
Rg6 {[%clk 0:02:08]} 26... Rf8 {[%clk 0:01:22.6]} 27. Rgxg7+ {[%clk 0:02:07.1]}
27... Kh8 {[%clk 0:01:19.1]} 28. Rh7+ {[%clk 0:02:07.5]} 1-0

[Event "*** Titled Tuesday Blitz"]
[Site "Chess.com"]
[Date "2020.03.03"]
[Round "3"]
[White "mitrabhaa"]
[Black "Godzillator"]
[Result "1-0"]
[WhiteElo "2633"]
[BlackElo "2398"]
[TimeControl "180+1"]
[EndTime "13:27:18 PST"]
[Termination "mitrabhaa won by checkmate"]

1. Nf3 {[%clk 0:03:00.9]} 1... d5 {[%clk 0:02:59.9]} 2. c4 {[%clk 0:03:00.9]}
2... c6 {[%clk 0:03:00.1]} 3. cxd5 {[%clk 0:03:01.6]} 3... cxd5 {[%clk 0:03:00]}
4. d4 {[%clk 0:03:02.5]} 4... Nf6 {[%clk 0:02:59]} 5. Nc3 {[%clk 0:03:03]} 5...
a6 {[%clk 0:02:59.2]} 6. Bf4 {[%clk 0:03:03.1]} 6... Nc6 {[%clk 0:02:59.4]} 7.
e3 {[%clk 0:03:03.5]} 7... Bg4 {[%clk 0:02:59.3]} 8. Be2 {[%clk 0:03:03.8]} 8...
e6 {[%clk 0:02:58.8]} 9. O-O {[%clk 0:03:04.4]} 9... Bd6 {[%clk 0:02:57.3]} 10.
Bg5 {[%clk 0:03:03.6]} 10... O-O {[%clk 0:02:55.7]} 11. Rc1 {[%clk 0:03:04]}
11... Rc8 {[%clk 0:02:53]} 12. a3 {[%clk 0:03:03.8]} 12... b5 {[%clk 0:02:51.8]}
13. b4 {[%clk 0:03:02.7]} 13... Be7 {[%clk 0:02:44.7]} 14. Bxf6 {[%clk
0:02:55.1]} 14... Bxf6 {[%clk 0:02:44.1]} 15. Nd2 {[%clk 0:02:56]} 15... Bxe2
{[%clk 0:02:43.8]} 16. Qxe2 {[%clk 0:02:53.4]} 16... e5 {[%clk 0:02:40.5]} 17.
dxe5 {[%clk 0:02:47.9]} 17... Nxe5 {[%clk 0:02:38.7]} 18. Rfd1 {[%clk
0:02:47.4]} 18... Re8 {[%clk 0:01:54]} 19. Nde4 {[%clk 0:02:43.9]} 19... Qb6
{[%clk 0:01:50.3]} 20. Nxd5 {[%clk 0:02:42.5]} 20... Qe6 {[%clk 0:01:49.1]} 21.
Nexf6+ {[%clk 0:02:38.8]} 21... gxf6 {[%clk 0:01:47.5]} 22. Nc7 {[%clk 0:02:37]}
22... Rxc7 {[%clk 0:01:44.6]} 23. Rxc7 {[%clk 0:02:36.6]} 23... Nc4 {[%clk
0:01:44.9]} 24. Rd4 {[%clk 0:02:27.7]} 24... f5 {[%clk 0:01:44.5]} 25. h3 {[%clk
0:02:18.3]} 25... Qe5 {[%clk 0:01:40.1]} 26. Rcd7 {[%clk 0:02:12.5]} 26... Qf6
{[%clk 0:01:26.9]} 27. Qf3 {[%clk 0:02:03.4]} 27... Ne5 {[%clk 0:01:25.9]} 28.
Qg3+ {[%clk 0:02:03.5]} 28... Kh8 {[%clk 0:01:24.1]} 29. R4d6 {[%clk 0:02:03.6]}
29... Qg7 {[%clk 0:01:13.4]} 30. Rd8 {[%clk 0:02:00.8]} 30... Rg8 {[%clk
0:01:06.6]} 31. Rxg8+ {[%clk 0:01:59.9]} 31... Kxg8 {[%clk 0:01:06.3]} 32. Rd8#
{[%clk 0:02:00.1]} 1-0

[Event "*** Titled Tuesday Blitz"]
[Site "Chess.com"]
[Date "2020.03.03"]
[Round "3"]
[White "x-3738459472"]
[Black "IngOscarArdila"]
[Result "1-0"]
[WhiteElo "2545"]
[BlackElo "2087"]
[TimeControl "180+1"]
[EndTime "13:27:41 PST"]
[Termination "x-3738459472 won by resignation"]

1. d4 {[%clk 0:03:00.9]} 1... Nf6 {[%clk 0:02:59.8]} 2. Bf4 {[%clk 0:03:00.1]}
2... g6 {[%clk 0:02:59.3]} 3. Nc3 {[%clk 0:02:58.8]} 3... Bg7 {[%clk 0:02:59.8]}
4. e4 {[%clk 0:02:57.9]} 4... d6 {[%clk 0:02:59.6]} 5. Qd2 {[%clk 0:02:54.5]}
5... O-O {[%clk 0:02:58.6]} 6. Bh6 {[%clk 0:02:54.6]} 6... e5 {[%clk 0:02:55.7]}
7. d5 {[%clk 0:02:52.9]} 7... Ng4 {[%clk 0:02:46.3]} 8. Bxg7 {[%clk 0:02:50.9]}
8... Kxg7 {[%clk 0:02:47.2]} 9. f3 {[%clk 0:02:49.3]} 9... Nf6 {[%clk
0:02:45.1]} 10. g4 {[%clk 0:02:47.2]} 10... c6 {[%clk 0:02:42.3]} 11. O-O-O
{[%clk 0:02:43.8]} 11... cxd5 {[%clk 0:02:41.7]} 12. Nxd5 {[%clk 0:02:43.5]}
12... Nxd5 {[%clk 0:02:41.9]} 13. Qxd5 {[%clk 0:02:43]} 13... Qg5+ {[%clk
0:02:35.7]} 14. Kb1 {[%clk 0:02:41.3]} 14... Rd8 {[%clk 0:02:35.2]} 15. h4
{[%clk 0:02:40.8]} 15... Qe7 {[%clk 0:02:34.4]} 16. h5 {[%clk 0:02:39.1]} 16...
g5 {[%clk 0:02:33.8]} 17. h6+ {[%clk 0:02:36.9]} 17... Kg8 {[%clk 0:02:32.4]}
18. Ne2 {[%clk 0:02:35.7]} 18... Be6 {[%clk 0:02:31.6]} 19. Qd2 {[%clk
0:02:35.6]} 19... Nc6 {[%clk 0:02:26.2]} 20. Ng3 {[%clk 0:02:34.9]} 20... f6
{[%clk 0:02:25.2]} 21. Nf5 {[%clk 0:02:20.2]} 21... Bxf5 {[%clk 0:02:25.2]} 22.
gxf5 {[%clk 0:02:20.2]} 22... Nd4 {[%clk 0:02:20]} 23. c3 {[%clk 0:02:15.8]}
23... Nc6 {[%clk 0:02:04.3]} 24. Bc4+ {[%clk 0:02:12.9]} 24... Kh8 {[%clk
0:02:04.3]} 25. Be6 {[%clk 0:02:10.3]} 25... d5 {[%clk 0:01:31.7]} 26. Bxd5
{[%clk 0:02:05.8]} 26... a5 {[%clk 0:01:26.6]} 27. Qe2 {[%clk 0:02:04.6]} 27...
Qc7 {[%clk 0:01:21.6]} 28. Qc4 {[%clk 0:02:01.9]} 28... Qb6 {[%clk 0:01:17.5]}
29. Bxc6 {[%clk 0:02:00.8]} 29... bxc6 {[%clk 0:01:14.3]} 30. Qf7 {[%clk
0:01:59.5]} 30... Qa7 {[%clk 0:01:03.9]} 31. Qxf6+ {[%clk 0:01:57.6]} 31... Kg8
{[%clk 0:01:03.8]} 32. Rxd8+ {[%clk 0:01:56.8]} 1-0

[Event "*** Titled Tuesday Blitz"]
[Site "Chess.com"]
[Date "2020.03.03"]
[Round "3"]
[White "Dhaydon19"]
[Black "SCIM"]
[Result "0-1"]
[WhiteElo "2725"]
[BlackElo "2487"]
[TimeControl "180+1"]
[EndTime "13:27:44 PST"]
[Termination "SCIM won by resignation"]

1. d4 {[%clk 0:02:53.9]} 1... Nf6 {[%clk 0:02:59.6]} 2. Nf3 {[%clk 0:02:54.8]}
2... g6 {[%clk 0:03:00.1]} 3. g3 {[%clk 0:02:55.4]} 3... Bg7 {[%clk 0:03:01]} 4.
Bg2 {[%clk 0:02:56.1]} 4... d5 {[%clk 0:03:00.9]} 5. O-O {[%clk 0:02:57]} 5...
O-O {[%clk 0:03:01.4]} 6. c4 {[%clk 0:02:57.8]} 6... dxc4 {[%clk 0:03:02.1]} 7.
Nc3 {[%clk 0:02:57.7]} 7... c6 {[%clk 0:02:52.5]} 8. a4 {[%clk 0:02:56.1]} 8...
Nbd7 {[%clk 0:02:48.2]} 9. Nd2 {[%clk 0:02:51.6]} 9... Nb6 {[%clk 0:02:37.1]}
10. a5 {[%clk 0:02:50.7]} 10... Nbd5 {[%clk 0:02:37.6]} 11. a6 {[%clk
0:02:46.8]} 11... b5 {[%clk 0:02:34.4]} 12. e4 {[%clk 0:02:43.2]} 12... Nb4
{[%clk 0:02:15.1]} 13. d5 {[%clk 0:02:37.9]} 13... cxd5 {[%clk 0:02:10.5]} 14.
exd5 {[%clk 0:02:31]} 14... Bd7 {[%clk 0:01:55.9]} 15. b3 {[%clk 0:02:21.8]}
15... Rc8 {[%clk 0:01:51.8]} 16. bxc4 {[%clk 0:02:21.6]} 16... bxc4 {[%clk
0:01:52.7]} 17. Ba3 {[%clk 0:02:20.3]} 17... Nd3 {[%clk 0:01:44.7]} 18. Nxc4
{[%clk 0:02:14.4]} 18... Nxf2 {[%clk 0:01:44.1]} 19. Qe2 {[%clk 0:02:08.3]}
19... Nh3+ {[%clk 0:01:38.3]} 20. Bxh3 {[%clk 0:02:06.1]} 20... Bxh3 {[%clk
0:01:39.2]} 21. Rfc1 {[%clk 0:02:02.6]} 21... Nxd5 {[%clk 0:01:29.3]} 22. Nxd5
{[%clk 0:01:51.1]} 22... Qxd5 {[%clk 0:01:30.2]} 23. Bb2 {[%clk 0:01:50.9]}
23... Qc5+ {[%clk 0:01:00.7]} 24. Kh1 {[%clk 0:01:46.8]} 24... Bxb2 {[%clk
0:00:53.9]} 25. Qxb2 {[%clk 0:01:42.5]} 25... Qd5+ {[%clk 0:00:53.5]} 26. Kg1
{[%clk 0:01:40.1]} 26... Rxc4 {[%clk 0:00:52.5]} 27. Rxc4 {[%clk 0:01:40.3]}
27... Qxc4 {[%clk 0:00:51.5]} 0-1

[Event "*** Titled Tuesday Blitz"]
[Site "Chess.com"]
[Date "2020.03.03"]
[Round "3"]
[White "DonPreuss"]
[Black "Vegan4future"]
[Result "1-0"]
[WhiteElo "2199"]
[BlackElo "2531"]
[TimeControl "180+1"]
[EndTime "13:27:46 PST"]
[Termination "DonPreuss won by resignation"]

1. Nc3 {[%clk 0:03:00.9]} 1... Nf6 {[%clk 0:02:48]} 2. e4 {[%clk 0:03:00.4]}
2... e5 {[%clk 0:02:47.9]} 3. f4 {[%clk 0:03:00.5]} 3... d5 {[%clk 0:02:47.4]}
4. fxe5 {[%clk 0:03:01]} 4... Nxe4 {[%clk 0:02:46.9]} 5. Qf3 {[%clk 0:03:01.6]}
5... Nxc3 {[%clk 0:02:40.2]} 6. bxc3 {[%clk 0:03:00.7]} 6... Nc6 {[%clk
0:02:40.7]} 7. d4 {[%clk 0:03:00.6]} 7... Be6 {[%clk 0:02:40.3]} 8. Bd3 {[%clk
0:02:59.7]} 8... Na5 {[%clk 0:02:39]} 9. Ne2 {[%clk 0:02:52.2]} 9... Be7 {[%clk
0:02:26.6]} 10. O-O {[%clk 0:02:50.8]} 10... Qd7 {[%clk 0:02:00.2]} 11. a4
{[%clk 0:02:19.1]} 11... O-O-O {[%clk 0:01:43.8]} 12. Ba3 {[%clk 0:02:17]} 12...
Bxa3 {[%clk 0:01:42.5]} 13. Rxa3 {[%clk 0:02:16.2]} 13... g5 {[%clk 0:01:39.8]}
14. Raa1 {[%clk 0:01:48]} 14... h5 {[%clk 0:01:06.4]} 15. Rab1 {[%clk 0:01:34]}
15... h4 {[%clk 0:01:05.8]} 16. Rb5 {[%clk 0:01:27.6]} 16... b6 {[%clk
0:01:02.3]} 17. Rxa5 {[%clk 0:01:22.6]} 17... bxa5 {[%clk 0:00:57.6]} 18. Ba6+
{[%clk 0:01:22.4]} 18... Kb8 {[%clk 0:00:58.1]} 19. Rb1+ {[%clk 0:01:22.5]}
19... Ka8 {[%clk 0:00:57]} 20. Bb7+ {[%clk 0:01:22.7]} 20... Kb8 {[%clk
0:00:57.6]} 21. Bc6+ {[%clk 0:01:23.3]} 21... Kc8 {[%clk 0:00:58.2]} 22. Bxd7+
{[%clk 0:01:23.8]} 22... Rxd7 {[%clk 0:00:59.1]} 23. Qd3 {[%clk 0:01:17.9]}
23... Kd8 {[%clk 0:00:58.8]} 24. Rb8+ {[%clk 0:01:16.4]} 1-0

[Event "*** Titled Tuesday Blitz"]
[Site "Chess.com"]
[Date "2020.03.03"]
[Round "3"]
[White "rubhani"]
[Black "Bigfish1995"]
[Result "0-1"]
[WhiteElo "2443"]
[BlackElo "3090"]
[TimeControl "180+1"]
[EndTime "13:27:47 PST"]
[Termination "Bigfish1995 won by resignation"]

1. e4 {[%clk 0:02:53.5]} 1... d6 {[%clk 0:03:00.5]} 2. d4 {[%clk 0:02:53.1]}
2... Nf6 {[%clk 0:03:01.1]} 3. Nc3 {[%clk 0:02:53]} 3... g6 {[%clk 0:03:01.8]}
4. Nf3 {[%clk 0:02:52.8]} 4... Bg7 {[%clk 0:03:02.2]} 5. Be3 {[%clk 0:02:53]}
5... O-O {[%clk 0:03:02.3]} 6. Qd2 {[%clk 0:02:53]} 6... a6 {[%clk 0:03:02.9]}
7. Bh6 {[%clk 0:02:49.9]} 7... b5 {[%clk 0:03:00.8]} 8. Bxg7 {[%clk 0:02:46.5]}
8... Kxg7 {[%clk 0:03:00.9]} 9. a3 {[%clk 0:02:09.2]} 9... Bb7 {[%clk
0:03:00.8]} 10. Bd3 {[%clk 0:02:09.4]} 10... c5 {[%clk 0:02:58]} 11. dxc5 {[%clk
0:02:00.9]} 11... dxc5 {[%clk 0:02:58.4]} 12. e5 {[%clk 0:02:01]} 12... Nfd7
{[%clk 0:02:54]} 13. O-O {[%clk 0:01:50.6]} 13... Bxf3 {[%clk 0:02:53.1]} 14.
gxf3 {[%clk 0:01:48.3]} 14... Nxe5 {[%clk 0:02:53.4]} 15. Qe3 {[%clk 0:01:40.3]}
15... Nxd3 {[%clk 0:02:53.6]} 16. cxd3 {[%clk 0:01:40.7]} 16... Nd7 {[%clk
0:02:54.2]} 17. Ne4 {[%clk 0:01:40.2]} 17... Rc8 {[%clk 0:02:53.9]} 18. Rac1
{[%clk 0:01:40.4]} 18... Qb6 {[%clk 0:02:53.6]} 19. Rc2 {[%clk 0:01:30.2]} 19...
c4 {[%clk 0:02:50.5]} 20. Rfc1 {[%clk 0:01:27.4]} 20... Qxe3 {[%clk 0:02:49.9]}
21. fxe3 {[%clk 0:01:28.3]} 21... Ne5 {[%clk 0:02:49.8]} 22. dxc4 {[%clk
0:01:19.6]} 22... Rxc4 {[%clk 0:02:50]} 23. Kg2 {[%clk 0:01:03.9]} 23... Rfc8
{[%clk 0:02:47.8]} 24. Rxc4 {[%clk 0:01:03.8]} 24... Rxc4 {[%clk 0:02:46.2]} 25.
Rxc4 {[%clk 0:00:58.7]} 25... Nxc4 {[%clk 0:02:46.4]} 26. Nc5 {[%clk 0:00:58.9]}
26... a5 {[%clk 0:02:42.4]} 27. a4 {[%clk 0:00:44.1]} 27... bxa4 {[%clk
0:02:42.2]} 28. Nxa4 {[%clk 0:00:44.2]} 28... Nxe3+ {[%clk 0:02:42.6]} 29. Kf2
{[%clk 0:00:45.1]} 29... Nd5 {[%clk 0:02:39.3]} 30. Nc5 {[%clk 0:00:43.5]} 30...
Kf6 {[%clk 0:02:35.8]} 31. b3 {[%clk 0:00:42.5]} 31... Nb4 {[%clk 0:02:32]} 32.
Nb7 {[%clk 0:00:41.3]} 32... Nc6 {[%clk 0:02:32.2]} 33. Ke3 {[%clk 0:00:41.5]}
33... Ke5 {[%clk 0:02:32.5]} 34. Nc5 {[%clk 0:00:41.7]} 34... Kd5 {[%clk
0:02:31.2]} 35. Nd3 {[%clk 0:00:41.9]} 35... e5 {[%clk 0:02:30]} 36. h4 {[%clk
0:00:37.9]} 36... f5 {[%clk 0:02:28.7]} 37. Nf2 {[%clk 0:00:34.3]} 37... Nd4
{[%clk 0:02:26.3]} 0-1